Body Name,Document Number,Service,Type of Expenditure,Invoice Date,Supplier Name,Cost to the Council (Amount Exc VAT),Month
EREWASH BOROUGH COUNCIL,27469,Arts Development              ,Special Events                ,31-Aug-2023,JELLYFISH THEATRE                       ,497.50,Sep-23
EREWASH BOROUGH COUNCIL,26885,Arts Development              ,Special Events                ,14-Aug-2023,PB FIRE LTD                             ,295.00,Sep-23
EREWASH BOROUGH COUNCIL,27910,Erewash Museum                ,Fees Costs and Expenses       ,18-Sep-2023,ABILITY SMART LIMITED                   ,"2,052.00",Sep-23
EREWASH BOROUGH COUNCIL,27477,Ilkeston Charter Fair         ,Special Events                ,24-Aug-2023,SAFETY SIGNS & NOTICES                  ,348.00,Sep-23
EREWASH BOROUGH COUNCIL,27870,Ilkeston Charter Fair         ,Contracted Services           ,15-Sep-2023,VIA EAST MIDLANDS LTD                   ,"2,263.55",Sep-23
EREWASH BOROUGH COUNCIL,27530,General Entertainment         ,Performing Rights Royalties   ,17-Aug-2023,PPL PRS LTD                             ,"2,000.00",Sep-23
EREWASH BOROUGH COUNCIL,27307,Communications                ,Publicity and Promotion       ,30-Aug-2023,ROYAL MAIL GROUP LTD.                   ,"4,782.52",Sep-23
EREWASH BOROUGH COUNCIL,27236,Communications                ,Publicity and Promotion       ,25-Aug-2023,WARNER (MIDLANDS) PLC                   ,"7,586.10",Sep-23
EREWASH BOROUGH COUNCIL,27248,"Police, Crime Commissioner Com",Contracted Services           ,18-Aug-2023,BOLSOVER DISTRICT COUNCIL               ,370.00,Sep-23
EREWASH BOROUGH COUNCIL,27248,"Police, Crime Commissioner Com",Contracted Services           ,18-Aug-2023,BOLSOVER DISTRICT COUNCIL               ,370.00,Sep-23
EREWASH BOROUGH COUNCIL,26797,"Police, Crime Commissioner Com",Project Grants                ,10-Aug-2023,SOUTH DERBYSHIRE CVS.                   ,"4,124.67",Sep-23
EREWASH BOROUGH COUNCIL,27071,Transport Trading Account     ,General Equipment             ,17-Aug-2023,EUROTRUCK MIDLANDS LTD                  ,455.00,Sep-23
EREWASH BOROUGH COUNCIL,27483,Transport Trading Account     ,General Equipment             ,09-Aug-2023,PARTIC MOTOR SPARES LTD                 ,385.00,Sep-23
EREWASH BOROUGH COUNCIL,27483,Transport Trading Account     ,General Equipment             ,09-Aug-2023,PARTIC MOTOR SPARES LTD                 ,323.53,Sep-23
EREWASH BOROUGH COUNCIL,27518,Transport Trading Account     ,General Equipment             ,22-Aug-2023,LEDAM MAINTENANCE SUPPLIES              ,499.15,Sep-23
EREWASH BOROUGH COUNCIL,26996,Household Waste Collection    ,Agency Staff                  ,12-Aug-2023,WORKCHAIN LTD                           ,491.70,Sep-23
EREWASH BOROUGH COUNCIL,26800,Household Waste Collection    ,Agency Staff                  ,05-Aug-2023,WORKCHAIN LTD                           ,495.00,Sep-23
EREWASH BOROUGH COUNCIL,27223,Household Waste Collection    ,Agency Staff                  ,19-Aug-2023,WORKCHAIN LTD                           ,"1,333.20",Sep-23
EREWASH BOROUGH COUNCIL,27418,Household Waste Collection    ,Agency Staff                  ,26-Aug-2023,WORKCHAIN LTD                           ,518.10,Sep-23
EREWASH BOROUGH COUNCIL,27419,Household Waste Collection    ,Tyres                         ,31-Aug-2023,LODGE TYRE COMPANY LTD                  ,"5,164.65",Sep-23
EREWASH BOROUGH COUNCIL,27292,Household Waste Collection    ,Bins                          ,11-Aug-2023,J & HM DICKSON LTD                      ,60.00,Sep-23
EREWASH BOROUGH COUNCIL,27476,Household Waste Collection    ,Bins                          ,24-Aug-2023,SAFETY SIGNS & NOTICES                  ,773.40,Sep-23
EREWASH BOROUGH COUNCIL,28100,Household Waste Collection    ,Bins                          ,19-Sep-2023,SAFETY SIGNS & NOTICES                  ,257.80,Sep-23
EREWASH BOROUGH COUNCIL,27466,Household Waste Collection    ,Bins                          ,29-Aug-2023,ARCO                                    ,"1,516.39",Sep-23
EREWASH BOROUGH COUNCIL,27315,Household Waste Collection    ,Bins                          ,30-Aug-2023,MDB PLUMBING (NOTTM) LTD                ,434.80,Sep-23
EREWASH BOROUGH COUNCIL,26866,Household Waste Collection    ,Repairs and Maintenance       ,10-Aug-2023,SANDICLIFFE LIMITED                     ,380.93,Sep-23
EREWASH BOROUGH COUNCIL,27275,Household Waste Collection    ,Repairs and Maintenance       ,24-Aug-2023,EUROMUNICIPAL LTD                       ,325.00,Sep-23
EREWASH BOROUGH COUNCIL,27091,Household Waste Collection    ,Repairs and Maintenance       ,16-Aug-2023,WASTE PARTS UK LTD                      ,515.96,Sep-23
EREWASH BOROUGH COUNCIL,27518,Household Waste Collection    ,Repairs and Maintenance       ,22-Aug-2023,LEDAM MAINTENANCE SUPPLIES              ,306.55,Sep-23
EREWASH BOROUGH COUNCIL,26900,Trade Waste                   ,Agency Staff                  ,15-Aug-2023,EXTRA PERSONNEL LTD                     ,390.00,Sep-23
EREWASH BOROUGH COUNCIL,26600,Trade Waste                   ,Agency Staff                  ,02-Aug-2023,EXTRA PERSONNEL LTD                     ,487.50,Sep-23
EREWASH BOROUGH COUNCIL,27255,Trade Waste                   ,Agency Staff                  ,25-Aug-2023,EXTRA PERSONNEL LTD                     ,487.50,Sep-23
EREWASH BOROUGH COUNCIL,27441,Trade Waste                   ,Agency Staff                  ,01-Sep-2023,EXTRA PERSONNEL LTD                     ,390.00,Sep-23
EREWASH BOROUGH COUNCIL,27464,Trade Waste                   ,Bins                          ,29-Aug-2023,ESE WORLD LIMITED                       ,"3,166.00",Sep-23
EREWASH BOROUGH COUNCIL,27719,Trade Waste                   ,Repairs and Maintenance       ,31-Aug-2023,WILLIAM WEST & SONS (ILKESTON) LIMITED  ,414.00,Sep-23
EREWASH BOROUGH COUNCIL,27716,Trade Waste                   ,Software Licences             ,16-Aug-2023,TRUTAC LTD                              ,800.00,Sep-23
EREWASH BOROUGH COUNCIL,26884,Trade Waste                   ,Software Licences             ,09-Aug-2023,WHITESPACE WORK SOFTWARE LTD            ,"16,950.00",Sep-23
EREWASH BOROUGH COUNCIL,26996,Kerbside Recycling Collection ,Agency Staff                  ,12-Aug-2023,WORKCHAIN LTD                           ,327.80,Sep-23
EREWASH BOROUGH COUNCIL,26800,Kerbside Recycling Collection ,Agency Staff                  ,05-Aug-2023,WORKCHAIN LTD                           ,330.00,Sep-23
EREWASH BOROUGH COUNCIL,27223,Kerbside Recycling Collection ,Agency Staff                  ,19-Aug-2023,WORKCHAIN LTD                           ,888.80,Sep-23
EREWASH BOROUGH COUNCIL,27418,Kerbside Recycling Collection ,Agency Staff                  ,26-Aug-2023,WORKCHAIN LTD                           ,345.40,Sep-23
EREWASH BOROUGH COUNCIL,27292,Kerbside Recycling Collection ,General Equipment             ,11-Aug-2023,J & HM DICKSON LTD                      ,520.00,Sep-23
EREWASH BOROUGH COUNCIL,27474,Kerbside Recycling Collection ,Repairs and Maintenance       ,30-Jun-2023,FUEL LINK SYSTEMS                       ,794.00,Sep-23
EREWASH BOROUGH COUNCIL,27024,Food Inspection and Hygiene   ,Agency Staff                  ,16-Aug-2023,BUCKINGHAM FUTURES LIMITED              ,"1,260.00",Sep-23
EREWASH BOROUGH COUNCIL,26806,Food Inspection and Hygiene   ,Agency Staff                  ,09-Aug-2023,BUCKINGHAM FUTURES LIMITED              ,"1,675.00",Sep-23
EREWASH BOROUGH COUNCIL,27212,Contaminated Land             ,Agency Staff                  ,23-Aug-2023,OYSTER PARTNERSHIP LTD                  ,644.85,Sep-23
EREWASH BOROUGH COUNCIL,27210,Contaminated Land             ,Agency Staff                  ,23-Aug-2023,OYSTER PARTNERSHIP LTD                  ,675.00,Sep-23
EREWASH BOROUGH COUNCIL,26788,Contaminated Land             ,Agency Staff                  ,09-Aug-2023,OYSTER PARTNERSHIP LTD                  ,644.85,Sep-23
EREWASH BOROUGH COUNCIL,27372,Contaminated Land             ,Agency Staff                  ,30-Aug-2023,OYSTER PARTNERSHIP LTD                  ,509.85,Sep-23
EREWASH BOROUGH COUNCIL,27222,Infec Disease & Food Poisoning,Contracted Services           ,23-Aug-2023,OSBORNE RICHARDSON                      ,601.00,Sep-23
EREWASH BOROUGH COUNCIL,27211,Infec Disease & Food Poisoning,Contracted Services           ,23-Aug-2023,OYSTER PARTNERSHIP LTD                  ,616.10,Sep-23
EREWASH BOROUGH COUNCIL,27371,Infec Disease & Food Poisoning,Contracted Services           ,30-Aug-2023,OYSTER PARTNERSHIP LTD                  ,596.10,Sep-23
EREWASH BOROUGH COUNCIL,27228,Infec Disease & Food Poisoning,Work In Default               ,08-Aug-2023,AW LYMN LTD                             ,"1,339.00",Sep-23
EREWASH BOROUGH COUNCIL,27387,Urban Renewal                 ,Agency Staff                  ,30-Aug-2023,BUCKINGHAM FUTURES LIMITED              ,"1,385.10",Sep-23
EREWASH BOROUGH COUNCIL,27023,Urban Renewal                 ,Agency Staff                  ,16-Aug-2023,BUCKINGHAM FUTURES LIMITED              ,"1,406.00",Sep-23
EREWASH BOROUGH COUNCIL,27226,Urban Renewal                 ,Agency Staff                  ,23-Aug-2023,BUCKINGHAM FUTURES LIMITED              ,"1,406.00",Sep-23
EREWASH BOROUGH COUNCIL,27630,Urban Renewal                 ,Agency Staff                  ,06-Sep-2023,BUCKINGHAM FUTURES LIMITED              ,"1,343.93",Sep-23
EREWASH BOROUGH COUNCIL,25869,Homelessness                  ,Temporary Accommodation       ,10-Jul-2023,TUDOR LODGE HOTEL                       ,933.34,Sep-23
EREWASH BOROUGH COUNCIL,26618,Homelessness                  ,Temporary Accommodation       ,01-Aug-2023,C WE ARE HERE YOUTH LTD                 ,285.71,Sep-23
EREWASH BOROUGH COUNCIL,26718,Homelessness                  ,Temporary Accommodation       ,09-Aug-2023,C WE ARE HERE YOUTH LTD                 ,500.00,Sep-23
EREWASH BOROUGH COUNCIL,26914,Homelessness                  ,Temporary Accommodation       ,16-Aug-2023,C WE ARE HERE YOUTH LTD                 ,500.00,Sep-23
EREWASH BOROUGH COUNCIL,27098,Homelessness                  ,Temporary Accommodation       ,22-Aug-2023,C WE ARE HERE YOUTH LTD                 ,500.00,Sep-23
EREWASH BOROUGH COUNCIL,27300,Homelessness                  ,Temporary Accommodation       ,29-Aug-2023,C WE ARE HERE YOUTH LTD                 ,500.00,Sep-23
EREWASH BOROUGH COUNCIL,27598,Homelessness                  ,Temporary Accommodation       ,05-Sep-2023,C WE ARE HERE YOUTH LTD                 ,500.00,Sep-23
EREWASH BOROUGH COUNCIL,28071,Homelessness                  ,Temporary Accommodation       ,20-Sep-2023,C WE ARE HERE YOUTH LTD                 ,500.00,Sep-23
EREWASH BOROUGH COUNCIL,26700,Homelessness                  ,Temporary Accommodation       ,09-Aug-2023,VICTORIA PARK HOTEL                     ,"3,333.33",Sep-23
EREWASH BOROUGH COUNCIL,27422,Homelessness                  ,Temporary Accommodation       ,01-Sep-2023,VICTORIA PARK HOTEL                     ,"7,476.00",Sep-23
EREWASH BOROUGH COUNCIL,27021,Homelessness                  ,Temporary Accommodation       ,17-Aug-2023,VICTORIA PARK HOTEL                     ,"11,392.00",Sep-23
EREWASH BOROUGH COUNCIL,27312,Homelessness                  ,Temporary Accommodation       ,30-Aug-2023,VICTORIA PARK HOTEL                     ,630.00,Sep-23
EREWASH BOROUGH COUNCIL,27312,Homelessness                  ,Temporary Accommodation       ,30-Aug-2023,VICTORIA PARK HOTEL                     ,810.00,Sep-23
EREWASH BOROUGH COUNCIL,26684,Homelessness                  ,Temporary Accommodation       ,07-Aug-2023,VICTORIA PARK HOTEL                     ,"3,120.00",Sep-23
EREWASH BOROUGH COUNCIL,27258,Homelessness                  ,Temporary Accommodation       ,28-Aug-2023,PARAMOUNT HOTEL                         ,420.00,Sep-23
EREWASH BOROUGH COUNCIL,27261,Homelessness                  ,Temporary Accommodation       ,28-Aug-2023,PARAMOUNT HOTEL                         ,420.00,Sep-23
EREWASH BOROUGH COUNCIL,27448,Homelessness                  ,Temporary Accommodation       ,04-Sep-2023,PARAMOUNT HOTEL                         ,420.00,Sep-23
EREWASH BOROUGH COUNCIL,27260,Homelessness                  ,Temporary Accommodation       ,28-Aug-2023,PARAMOUNT HOTEL                         ,840.00,Sep-23
EREWASH BOROUGH COUNCIL,27449,Homelessness                  ,Temporary Accommodation       ,04-Sep-2023,PARAMOUNT HOTEL                         ,840.00,Sep-23
EREWASH BOROUGH COUNCIL,27446,Homelessness                  ,Temporary Accommodation       ,04-Sep-2023,A38 WOODLANDS                           ,378.00,Sep-23
EREWASH BOROUGH COUNCIL,27445,Homelessness                  ,Temporary Accommodation       ,04-Sep-2023,A38 WOODLANDS                           ,406.00,Sep-23
EREWASH BOROUGH COUNCIL,27447,Homelessness                  ,Temporary Accommodation       ,04-Sep-2023,A38 WOODLANDS                           ,406.00,Sep-23
EREWASH BOROUGH COUNCIL,26827,Homelessness                  ,Temporary Accommodation       ,14-Aug-2023,A38 WOODLANDS                           ,378.00,Sep-23
EREWASH BOROUGH COUNCIL,26829,Homelessness                  ,Temporary Accommodation       ,14-Aug-2023,A38 WOODLANDS                           ,378.00,Sep-23
EREWASH BOROUGH COUNCIL,26830,Homelessness                  ,Temporary Accommodation       ,14-Aug-2023,A38 WOODLANDS                           ,378.00,Sep-23
EREWASH BOROUGH COUNCIL,27048,Homelessness                  ,Temporary Accommodation       ,21-Aug-2023,A38 WOODLANDS                           ,378.00,Sep-23
EREWASH BOROUGH COUNCIL,27050,Homelessness                  ,Temporary Accommodation       ,21-Aug-2023,A38 WOODLANDS                           ,378.00,Sep-23
EREWASH BOROUGH COUNCIL,27263,Homelessness                  ,Temporary Accommodation       ,28-Aug-2023,A38 WOODLANDS                           ,378.00,Sep-23
EREWASH BOROUGH COUNCIL,27265,Homelessness                  ,Temporary Accommodation       ,28-Aug-2023,A38 WOODLANDS                           ,378.00,Sep-23
EREWASH BOROUGH COUNCIL,26828,Homelessness                  ,Temporary Accommodation       ,14-Aug-2023,A38 WOODLANDS                           ,406.00,Sep-23
EREWASH BOROUGH COUNCIL,26831,Homelessness                  ,Temporary Accommodation       ,14-Aug-2023,A38 WOODLANDS                           ,406.00,Sep-23
EREWASH BOROUGH COUNCIL,27047,Homelessness                  ,Temporary Accommodation       ,21-Aug-2023,A38 WOODLANDS                           ,406.00,Sep-23
EREWASH BOROUGH COUNCIL,27049,Homelessness                  ,Temporary Accommodation       ,21-Aug-2023,A38 WOODLANDS                           ,406.00,Sep-23
EREWASH BOROUGH COUNCIL,27262,Homelessness                  ,Temporary Accommodation       ,28-Aug-2023,A38 WOODLANDS                           ,406.00,Sep-23
EREWASH BOROUGH COUNCIL,27264,Homelessness                  ,Temporary Accommodation       ,28-Aug-2023,A38 WOODLANDS                           ,406.00,Sep-23
EREWASH BOROUGH COUNCIL,27035,Homelessness                  ,Temporary Accommodation       ,07-Aug-2023,ASCOT HOTEL                             ,280.00,Sep-23
EREWASH BOROUGH COUNCIL,27036,Homelessness                  ,Temporary Accommodation       ,14-Aug-2023,ASCOT HOTEL                             ,280.00,Sep-23
EREWASH BOROUGH COUNCIL,27437,Homelessness                  ,Temporary Accommodation       ,28-Aug-2023,ASCOT HOTEL                             ,280.00,Sep-23
EREWASH BOROUGH COUNCIL,27037,Homelessness                  ,Temporary Accommodation       ,21-Aug-2023,ASCOT HOTEL                             ,280.00,Sep-23
EREWASH BOROUGH COUNCIL,27438,Homelessness                  ,Temporary Accommodation       ,04-Sep-2023,ASCOT HOTEL                             ,280.00,Sep-23
EREWASH BOROUGH COUNCIL,27491,Homelessness                  ,Temporary Accommodation       ,31-Aug-2023,LANGUAGE LINE LTD                       ,309.55,Sep-23
EREWASH BOROUGH COUNCIL,27841,Homelessness                  ,Leased Properties             ,12-Sep-2023,JP'S GROUNDS & MAINTENANCE SERVICES     ,490.00,Sep-23
EREWASH BOROUGH COUNCIL,27596,Homelessness                  ,Leased Properties             ,01-Sep-2023,EMH HOMES                               ,967.62,Sep-23
EREWASH BOROUGH COUNCIL,27597,Homelessness                  ,Leased Properties             ,01-Sep-2023,EMH HOMES                               ,"1,059.74",Sep-23
EREWASH BOROUGH COUNCIL,27749,Homelessness                  ,Fees Costs and Expenses       ,13-Sep-2023,FREEDOM COMMUNITY PROJECT               ,"1,223.43",Sep-23
EREWASH BOROUGH COUNCIL,27744,Homelessness Prevention       ,Spend to Save                 ,10-Aug-2023,MONKEY PUZZLE DEVELOPMENTS PROJECT 1 LTD,939.44,Sep-23
EREWASH BOROUGH COUNCIL,27259,Homelessness Prevention       ,Spend to Save                 ,28-Aug-2023,PARAMOUNT HOTEL                         ,420.00,Sep-23
EREWASH BOROUGH COUNCIL,27450,Homelessness Prevention       ,Spend to Save                 ,04-Sep-2023,PARAMOUNT HOTEL                         ,420.00,Sep-23
EREWASH BOROUGH COUNCIL,28128,Homelessness Prevention       ,Spend to Save                 ,12-Sep-2023,MARGI WILLIS ESTATES LTD                ,"1,590.00",Sep-23
EREWASH BOROUGH COUNCIL,27488,Front Line Support Services   ,Security                      ,31-Aug-2023,KINGS ARMOURED SECURITY SERVICES        ,405.00,Sep-23
EREWASH BOROUGH COUNCIL,27748,Insurances (Corporate Matters),Valuation Fees                ,13-Sep-2023,MARSH LTD                               ,"1,850.00",Sep-23
EREWASH BOROUGH COUNCIL,27965,Treasury and Bank Charges     ,Bank Charges                  ,14-Sep-2023,LLOYDS BANK PLC                         ,845.63,Sep-23
EREWASH BOROUGH COUNCIL,28042,Treasury and Bank Charges     ,Credit/Debit Card Charges     ,15-Sep-2023,PAY 360 LIMITED (CAPITA)                ,"6,096.86",Sep-23
EREWASH BOROUGH COUNCIL,28328,Treasury and Bank Charges     ,Allpay/Post Office Charges    ,30-Sep-2023,ALLPAY LIMITED                          ,884.54,Sep-23
EREWASH BOROUGH COUNCIL,26698,Revenues and Benefits         ,Postages                      ,09-Aug-2023,ROYAL MAIL GROUP LTD.                   ,746.60,Sep-23
EREWASH BOROUGH COUNCIL,26904,Revenues and Benefits         ,Postages                      ,16-Aug-2023,ROYAL MAIL GROUP LTD.                   ,729.80,Sep-23
EREWASH BOROUGH COUNCIL,27100,Revenues and Benefits         ,Postages                      ,23-Aug-2023,ROYAL MAIL GROUP LTD.                   ,842.08,Sep-23
EREWASH BOROUGH COUNCIL,27308,Revenues and Benefits         ,Postages                      ,30-Aug-2023,ROYAL MAIL GROUP LTD.                   ,669.88,Sep-23
EREWASH BOROUGH COUNCIL,26834,Revenues and Benefits         ,Postages                      ,09-Aug-2023,FRAMA UK LIMITED                        ,255.00,Sep-23
EREWASH BOROUGH COUNCIL,27743,Revenues and Benefits         ,Postages                      ,31-Aug-2023,TELSOLUTIONS LTD                        ,300.00,Sep-23
EREWASH BOROUGH COUNCIL,26910,Discretionary Housing Payments,Software Licences             ,15-Aug-2023,ASCENDANT SOLUTIONS                     ,"9,000.00",Sep-23
EREWASH BOROUGH COUNCIL,27297,Housing Benefit Administration,General Equipment             ,28-Aug-2023,CIVICA UK LIMITED                       ,"13,896.00",Sep-23
EREWASH BOROUGH COUNCIL,27272,Housing Benefit Administration,Computer Software             ,23-Aug-2023,CIVICA UK LIMITED                       ,"5,700.00",Sep-23
EREWASH BOROUGH COUNCIL,27298,Housing Benefit Administration,Computer Software             ,28-Aug-2023,CIVICA UK LIMITED                       ,"11,000.00",Sep-23
EREWASH BOROUGH COUNCIL,27298,Housing Benefit Administration,Computer Software             ,28-Aug-2023,CIVICA UK LIMITED                       ,"1,930.00",Sep-23
EREWASH BOROUGH COUNCIL,27299,Housing Benefit Administration,Computer Software             ,28-Aug-2023,CIVICA UK LIMITED                       ,"17,130.00",Sep-23
EREWASH BOROUGH COUNCIL,27419,Ilkeston Admin and Courier    ,Tyres                         ,31-Aug-2023,LODGE TYRE COMPANY LTD                  ,57.33,Sep-23
EREWASH BOROUGH COUNCIL,27020,ICT Support Services          ,Agency Staff                  ,17-Aug-2023,ROBERT HALF LTD                         ,796.23,Sep-23
EREWASH BOROUGH COUNCIL,27019,ICT Support Services          ,Agency Staff                  ,17-Aug-2023,ROBERT HALF LTD                         ,905.76,Sep-23
EREWASH BOROUGH COUNCIL,27225,ICT Support Services          ,Agency Staff                  ,24-Aug-2023,ROBERT HALF LTD                         ,905.76,Sep-23
EREWASH BOROUGH COUNCIL,27380,ICT Support Services          ,Agency Staff                  ,31-Aug-2023,ROBERT HALF LTD                         ,905.76,Sep-23
EREWASH BOROUGH COUNCIL,27224,ICT Support Services          ,Agency Staff                  ,24-Aug-2023,ROBERT HALF LTD                         ,"1,091.13",Sep-23
EREWASH BOROUGH COUNCIL,27381,ICT Support Services          ,Agency Staff                  ,31-Aug-2023,ROBERT HALF LTD                         ,"1,091.13",Sep-23
EREWASH BOROUGH COUNCIL,27621,ICT Support Services          ,Agency Staff                  ,07-Sep-2023,ROBERT HALF LTD                         ,732.44,Sep-23
EREWASH BOROUGH COUNCIL,27994,ICT Support Services          ,Agency Staff                  ,21-Sep-2023,ROBERT HALF LTD                         ,905.76,Sep-23
EREWASH BOROUGH COUNCIL,28067,ICT Support Services          ,Agency Staff                  ,14-Sep-2023,ROBERT HALF LTD                         ,905.76,Sep-23
EREWASH BOROUGH COUNCIL,27622,ICT Support Services          ,Agency Staff                  ,07-Sep-2023,ROBERT HALF LTD                         ,914.19,Sep-23
EREWASH BOROUGH COUNCIL,27826,ICT Support Services          ,Agency Staff                  ,14-Sep-2023,ROBERT HALF LTD                         ,"1,091.13",Sep-23
EREWASH BOROUGH COUNCIL,27993,ICT Support Services          ,Agency Staff                  ,21-Sep-2023,ROBERT HALF LTD                         ,"1,091.13",Sep-23
EREWASH BOROUGH COUNCIL,26883,ICT Support Services          ,General Equipment             ,10-Aug-2023,CCS MEDIA LIMITED                       ,344.08,Sep-23
EREWASH BOROUGH COUNCIL,27494,ICT Support Services          ,Software Licences             ,31-Aug-2023,BOTTOMLINE TECHNOLOGIES LTD             ,"4,931.98",Sep-23
EREWASH BOROUGH COUNCIL,27288,ICT Support Services          ,GIS Software Licences         ,23-Aug-2023,QUEST SOFTWARE INTERNATIONAL LTD        ,264.00,Sep-23
EREWASH BOROUGH COUNCIL,27485,ICT Support Services          ,Data Lines                    ,29-Aug-2023,INSIGHT DIRECT (UK) LTD                 ,"9,228.77",Sep-23
EREWASH BOROUGH COUNCIL,26832,ICT Support Services          ,Data Lines                    ,14-Aug-2023,ZEN INTERNET LIMITED                    ,"2,080.00",Sep-23
EREWASH BOROUGH COUNCIL,26818,ICT Support Services          ,Data Lines                    ,10-Aug-2023,AXESS SYSTEMS LTD                       ,564.00,Sep-23
EREWASH BOROUGH COUNCIL,27725,ICT Support Services          ,Mobile Phones                 ,11-Sep-2023,CLASS AFFINITY PROJECTS LTD             ,"1,774.04",Sep-23
EREWASH BOROUGH COUNCIL,28129,ICT Support Services          ,Telephones                    ,22-Sep-2023,BRITISH TELECOMMUNICATIONS PLC          ,279.20,Sep-23
EREWASH BOROUGH COUNCIL,27484,ICT Support Services          ,Security                      ,30-Aug-2023,PHOENIX SOFTWARE LTD                    ,"16,000.00",Sep-23
EREWASH BOROUGH COUNCIL,27532,Development Control           ,Planning Fees                 ,06-Sep-2023,PORTALPLANQUEST LTD                     ,"1,848.00",Sep-23
EREWASH BOROUGH COUNCIL,27914,Development Control           ,Planning Fees                 ,19-Sep-2023,PORTALPLANQUEST LTD                     ,924.00,Sep-23
EREWASH BOROUGH COUNCIL,26869,Development Control           ,Consultants Fees              ,11-Aug-2023,DERBYSHIRE WILDLIFE TRUST               ,"7,168.00",Sep-23
EREWASH BOROUGH COUNCIL,27089,Development Control           ,Consultants Fees              ,18-Aug-2023,ESSEX COUNTY COUNCIL                    ,"3,236.00",Sep-23
EREWASH BOROUGH COUNCIL,27712,Development Control           ,Consultants Fees              ,30-Aug-2023,SYMONDS AND SAMPSON                     ,400.00,Sep-23
EREWASH BOROUGH COUNCIL,26869,Planning Policy               ,Consultants Fees              ,11-Aug-2023,DERBYSHIRE WILDLIFE TRUST               ,"6,600.00",Sep-23
EREWASH BOROUGH COUNCIL,27504,Economic Development          ,Project Grants                ,31-Aug-2023,INSIDE OUT GROUP (EUROPE) LTD           ,300.00,Sep-23
EREWASH BOROUGH COUNCIL,27737,Economic Development          ,Project Grants                ,29-Aug-2023,BROWNE JACOBSON                         ,"2,615.50",Sep-23
EREWASH BOROUGH COUNCIL,26795,Building Control - Fee Earning,Agency Staff                  ,10-Aug-2023,MATCHTECH GROUP (UK) LIMITED            ,907.50,Sep-23
EREWASH BOROUGH COUNCIL,27000,Building Control - Fee Earning,Agency Staff                  ,17-Aug-2023,MATCHTECH GROUP (UK) LIMITED            ,825.00,Sep-23
EREWASH BOROUGH COUNCIL,27220,Building Control - Fee Earning,Agency Staff                  ,24-Aug-2023,MATCHTECH GROUP (UK) LIMITED            ,825.00,Sep-23
EREWASH BOROUGH COUNCIL,27377,Building Control - Fee Earning,Agency Staff                  ,31-Aug-2023,MATCHTECH GROUP (UK) LIMITED            ,825.00,Sep-23
EREWASH BOROUGH COUNCIL,26811,Registration of Electors      ,Postages                      ,11-Aug-2023,ROYAL MAIL GROUP LTD.                   ,280.84,Sep-23
EREWASH BOROUGH COUNCIL,27026,Registration of Electors      ,Postages                      ,18-Aug-2023,ROYAL MAIL GROUP LTD.                   ,252.96,Sep-23
EREWASH BOROUGH COUNCIL,27269,Local Land Charges            ,County Council Search Charges ,23-Aug-2023,DERBYSHIRE COUNTY COUNCIL...            ,"2,486.38",Sep-23
EREWASH BOROUGH COUNCIL,25812,Local Land Charges            ,County Council Search Charges ,07-Jul-2023,DERBYSHIRE COUNTY COUNCIL...            ,"6,241.45",Sep-23
EREWASH BOROUGH COUNCIL,27374,Civic Transport               ,Hire Charges                  ,30-Aug-2023,PINNACLE EXECUTIVE CARS LIMITED         ,489.55,Sep-23
EREWASH BOROUGH COUNCIL,26903,Green Space                   ,Agency Staff                  ,15-Aug-2023,EXTRA PERSONNEL LTD                     ,"2,949.90",Sep-23
EREWASH BOROUGH COUNCIL,27043,Green Space                   ,Agency Staff                  ,18-Aug-2023,EXTRA PERSONNEL LTD                     ,"2,831.69",Sep-23
EREWASH BOROUGH COUNCIL,26913,Green Space                   ,Gas                           ,14-Aug-2023,TOTALENERGIES GAS & POWER LTD           ,559.88,Sep-23
EREWASH BOROUGH COUNCIL,27916,Green Space                   ,Metered Water                 ,12-Aug-2023,ANGLIAN WATER BUSINESS (NATIONAL)       ,"1,031.65",Sep-23
EREWASH BOROUGH COUNCIL,27419,Green Space                   ,Tyres                         ,31-Aug-2023,LODGE TYRE COMPANY LTD                  ,586.90,Sep-23
EREWASH BOROUGH COUNCIL,27046,Green Space                   ,Materials and Consumables     ,18-Aug-2023,SCREWFIX DIRECT LTD                     ,274.95,Sep-23
EREWASH BOROUGH COUNCIL,27271,Green Space                   ,Materials and Consumables     ,11-Aug-2023,TELESHORE GROUP OF COMPANIES            ,"1,071.00",Sep-23
EREWASH BOROUGH COUNCIL,27239,Green Space                   ,Materials and Consumables     ,11-Aug-2023,TELESHORE GROUP OF COMPANIES            ,"1,423.84",Sep-23
EREWASH BOROUGH COUNCIL,26872,Green Space                   ,Materials and Consumables     ,14-Aug-2023,WARD RECYCLING                          ,678.17,Sep-23
EREWASH BOROUGH COUNCIL,27746,Green Space                   ,Materials and Consumables     ,23-Aug-2023,WARD RECYCLING                          ,345.00,Sep-23
EREWASH BOROUGH COUNCIL,27231,Green Space                   ,Materials and Consumables     ,21-Aug-2023,PENTLAND PLANTS LTD                     ,"1,332.85",Sep-23
EREWASH BOROUGH COUNCIL,26879,Green Space                   ,Materials and Consumables     ,14-Aug-2023,PROTECTIVE WEAR SUPPLIES LTD            ,573.80,Sep-23
EREWASH BOROUGH COUNCIL,27295,Green Space                   ,Materials and Consumables     ,25-Aug-2023,CROMWELL POLYTHENE LTD                  ,"1,201.20",Sep-23
EREWASH BOROUGH COUNCIL,27088,Green Space                   ,Contracted Services           ,18-Aug-2023,T H HEATH  CONTRACTS  LTD               ,280.00,Sep-23
EREWASH BOROUGH COUNCIL,27454,Green Space                   ,Contracted Services           ,31-Aug-2023,T H HEATH  CONTRACTS  LTD               ,"8,041.48",Sep-23
EREWASH BOROUGH COUNCIL,26421,Green Space                   ,Repairs and Maintenance       ,27-Jul-2023,RUSSELLS (KIRBYMOORSIDE) LIMITED        ,913.62,Sep-23
EREWASH BOROUGH COUNCIL,27455,Green Space                   ,Repairs and Maintenance       ,31-Aug-2023,RUSSELLS (KIRBYMOORSIDE) LIMITED        ,454.14,Sep-23
EREWASH BOROUGH COUNCIL,27481,Green Space                   ,Repairs and Maintenance       ,24-Aug-2023,DERBY BEARINGS LIMITED                  ,265.00,Sep-23
EREWASH BOROUGH COUNCIL,27233,Green Space                   ,Repairs and Maintenance       ,22-Aug-2023,BUCHER MUNICIPAL LTD                    ,345.76,Sep-23
EREWASH BOROUGH COUNCIL,26804,Green Space                   ,Repairs and Maintenance       ,10-Aug-2023,EUROTRUCK MIDLANDS LTD                  ,578.00,Sep-23
EREWASH BOROUGH COUNCIL,27720,Green Space                   ,Repairs and Maintenance       ,31-Aug-2023,WILLIAM WEST & SONS (ILKESTON) LIMITED  ,424.58,Sep-23
EREWASH BOROUGH COUNCIL,27720,Green Space                   ,Repairs and Maintenance       ,31-Aug-2023,WILLIAM WEST & SONS (ILKESTON) LIMITED  ,607.50,Sep-23
EREWASH BOROUGH COUNCIL,27531,Green Space                   ,Repairs and Maintenance       ,01-Sep-2023,AWSWORTH MOTOR CO LTD                   ,797.52,Sep-23
EREWASH BOROUGH COUNCIL,27528,Trees Hedges Local Nature Res ,Materials and Consumables     ,30-Aug-2023,TOM RICHARDS TREE SERVICES              ,500.00,Sep-23
EREWASH BOROUGH COUNCIL,27527,Trees Hedges Local Nature Res ,Contracted Services           ,30-Aug-2023,TOM RICHARDS TREE SERVICES              ,900.00,Sep-23
EREWASH BOROUGH COUNCIL,27731,Trees Hedges Local Nature Res ,Contracted Services           ,07-Sep-2023,TOM RICHARDS TREE SERVICES              ,500.00,Sep-23
EREWASH BOROUGH COUNCIL,28026,Trees Hedges Local Nature Res ,Contracted Services           ,24-Apr-2023,TOM RICHARDS TREE SERVICES              ,"2,800.00",Sep-23
EREWASH BOROUGH COUNCIL,26893,Play Areas                    ,Materials and Consumables     ,08-Aug-2023,TECHNIX RUBBER & PLASTIC LTD            ,319.00,Sep-23
EREWASH BOROUGH COUNCIL,27916,Allotments                    ,Metered Water                 ,12-Aug-2023,ANGLIAN WATER BUSINESS (NATIONAL)       ,"1,356.06",Sep-23
EREWASH BOROUGH COUNCIL,27916,Public Conveniences           ,Metered Water                 ,12-Aug-2023,ANGLIAN WATER BUSINESS (NATIONAL)       ,994.24,Sep-23
EREWASH BOROUGH COUNCIL,27101,Public Conveniences           ,Materials and Consumables     ,22-Aug-2023,BANNER GROUP LIMITED                    ,289.72,Sep-23
EREWASH BOROUGH COUNCIL,26813,Watercourse Maintenance       ,Contracted Services           ,11-Aug-2023,SELLICK PARTNERSHIP RECRUITMENT SPECIAL ,"1,485.00",Sep-23
EREWASH BOROUGH COUNCIL,27052,Watercourse Maintenance       ,Contracted Services           ,21-Aug-2023,SELLICK PARTNERSHIP RECRUITMENT SPECIAL ,"2,475.00",Sep-23
EREWASH BOROUGH COUNCIL,27452,Watercourse Maintenance       ,Contracted Services           ,04-Sep-2023,SELLICK PARTNERSHIP RECRUITMENT SPECIAL ,"1,980.00",Sep-23
EREWASH BOROUGH COUNCIL,27267,Watercourse Maintenance       ,Contracted Services           ,29-Aug-2023,SELLICK PARTNERSHIP RECRUITMENT SPECIAL ,"2,475.00",Sep-23
EREWASH BOROUGH COUNCIL,27241,Watercourse Maintenance       ,Contracted Services           ,22-Aug-2023,ALPHA PARTNER (MIDLANDS)  LIMITED       ,"1,995.80",Sep-23
EREWASH BOROUGH COUNCIL,26903,Street Scene                  ,Agency Staff                  ,15-Aug-2023,EXTRA PERSONNEL LTD                     ,"2,949.90",Sep-23
EREWASH BOROUGH COUNCIL,27043,Street Scene                  ,Agency Staff                  ,18-Aug-2023,EXTRA PERSONNEL LTD                     ,"2,831.68",Sep-23
EREWASH BOROUGH COUNCIL,27419,Street Scene                  ,Tyres                         ,31-Aug-2023,LODGE TYRE COMPANY LTD                  ,420.45,Sep-23
EREWASH BOROUGH COUNCIL,27707,Street Scene                  ,Materials and Consumables     ,20-Jul-2023,GEO POLLUTION TECHNOLOGIES (UK) LTD     ,"2,949.00",Sep-23
EREWASH BOROUGH COUNCIL,27419,Neighbourhood Wardens         ,Tyres                         ,31-Aug-2023,LODGE TYRE COMPANY LTD                  ,357.37,Sep-23
EREWASH BOROUGH COUNCIL,27904,Car Parking                   ,Reactive Maintenance          ,02-May-2023,GEO POLLUTION TECHNOLOGIES (UK) LTD     ,"1,260.00",Sep-23
EREWASH BOROUGH COUNCIL,27916,Car Parking                   ,Unmetered Water               ,12-Aug-2023,ANGLIAN WATER BUSINESS (NATIONAL)       ,"2,041.15",Sep-23
EREWASH BOROUGH COUNCIL,27461,Car Parking                   ,Contracted Services           ,31-Aug-2023,KINGS ARMOURED SECURITY SERVICES        ,"1,592.10",Sep-23
EREWASH BOROUGH COUNCIL,27509,Car Parking                   ,Credit/Debit Card Charges     ,31-Aug-2023,INTERNATIONAL PARKING SYSTEMS UK LTD    ,"3,537.80",Sep-23
EREWASH BOROUGH COUNCIL,26902,Long Eaton Market             ,Agency Staff                  ,15-Aug-2023,EXTRA PERSONNEL LTD                     ,203.58,Sep-23
EREWASH BOROUGH COUNCIL,26680,Long Eaton Market             ,Agency Staff                  ,07-Aug-2023,EXTRA PERSONNEL LTD                     ,271.44,Sep-23
EREWASH BOROUGH COUNCIL,26902,Ilkeston Market               ,Agency Staff                  ,15-Aug-2023,EXTRA PERSONNEL LTD                     ,135.72,Sep-23
EREWASH BOROUGH COUNCIL,26680,Ilkeston Market               ,Agency Staff                  ,07-Aug-2023,EXTRA PERSONNEL LTD                     ,180.96,Sep-23
EREWASH BOROUGH COUNCIL,27469,Sports Devt Coaching & Courses,Project Grants                ,31-Aug-2023,JELLYFISH THEATRE                       ,497.50,Sep-23
EREWASH BOROUGH COUNCIL,27717,Commissioned Projects         ,Fees Costs and Expenses       ,08-Sep-2023,THE LITTLE KITCHEN LTD                  ,600.00,Sep-23
EREWASH BOROUGH COUNCIL,26876,Commissioned Projects         ,Fees Costs and Expenses       ,15-Aug-2023,LEGACY LEISURE LTD                      ,"1,440.00",Sep-23
EREWASH BOROUGH COUNCIL,27704,Commissioned Projects         ,Fees Costs and Expenses       ,29-Aug-2023,LEGACY LEISURE LTD                      ,"1,200.00",Sep-23
EREWASH BOROUGH COUNCIL,27501,Pedestrian Zones - Ilk and LE ,Reactive Maintenance          ,05-Jul-2023,V G STOKES & SONS.                      ,"1,944.00",Sep-23
EREWASH BOROUGH COUNCIL,26997,Property and Estates          ,Repairs and Maintenance       ,16-Aug-2023,PEEL ELECTRICAL LTD                     ,"1,415.41",Sep-23
EREWASH BOROUGH COUNCIL,26686,Property and Estates          ,Repairs and Maintenance       ,08-Aug-2023,PEEL ELECTRICAL LTD                     ,320.84,Sep-23
EREWASH BOROUGH COUNCIL,27303,Property and Estates          ,Repairs and Maintenance       ,29-Aug-2023,PEEL ELECTRICAL LTD                     ,298.55,Sep-23
EREWASH BOROUGH COUNCIL,27482,Property and Estates          ,Repairs and Maintenance       ,30-Aug-2023,PEEL ELECTRICAL LTD                     ,326.61,Sep-23
EREWASH BOROUGH COUNCIL,27306,Property and Estates          ,Repairs and Maintenance       ,29-Aug-2023,PEEL ELECTRICAL LTD                     ,454.80,Sep-23
EREWASH BOROUGH COUNCIL,27287,Property and Estates          ,Repairs and Maintenance       ,24-Aug-2023,MDB PLUMBING (NOTTM) LTD                ,"1,016.26",Sep-23
EREWASH BOROUGH COUNCIL,27243,Property and Estates          ,Reactive Maintenance          ,23-Aug-2023,STEELCRAFT FABRICATIONS                 ,410.00,Sep-23
EREWASH BOROUGH COUNCIL,26823,Property and Estates          ,Reactive Maintenance          ,12-Aug-2023,ALPHA PARTNER (MIDLANDS)  LIMITED       ,300.00,Sep-23
EREWASH BOROUGH COUNCIL,26824,Property and Estates          ,Reactive Maintenance          ,12-Aug-2023,ALPHA PARTNER (MIDLANDS)  LIMITED       ,310.00,Sep-23
EREWASH BOROUGH COUNCIL,26825,Property and Estates          ,Reactive Maintenance          ,12-Aug-2023,ALPHA PARTNER (MIDLANDS)  LIMITED       ,510.00,Sep-23
EREWASH BOROUGH COUNCIL,26822,Property and Estates          ,Reactive Maintenance          ,12-Aug-2023,ALPHA PARTNER (MIDLANDS)  LIMITED       ,595.00,Sep-23
EREWASH BOROUGH COUNCIL,26814,Property and Estates          ,Reactive Maintenance          ,11-Aug-2023,ALPHA PARTNER (MIDLANDS)  LIMITED       ,"1,351.20",Sep-23
EREWASH BOROUGH COUNCIL,27034,Property and Estates          ,Reactive Maintenance          ,18-Aug-2023,ALPHA PARTNER (MIDLANDS)  LIMITED       ,360.00,Sep-23
EREWASH BOROUGH COUNCIL,27051,Property and Estates          ,Reactive Maintenance          ,21-Aug-2023,ALPHA PARTNER (MIDLANDS)  LIMITED       ,710.00,Sep-23
EREWASH BOROUGH COUNCIL,26990,Property and Estates          ,Reactive Maintenance          ,16-Aug-2023,ALPHA PARTNER (MIDLANDS)  LIMITED       ,850.00,Sep-23
EREWASH BOROUGH COUNCIL,27375,Property and Estates          ,Reactive Maintenance          ,31-Aug-2023,ALPHA PARTNER (MIDLANDS)  LIMITED       ,270.00,Sep-23
EREWASH BOROUGH COUNCIL,27376,Property and Estates          ,Reactive Maintenance          ,31-Aug-2023,ALPHA PARTNER (MIDLANDS)  LIMITED       ,455.00,Sep-23
EREWASH BOROUGH COUNCIL,27323,Property and Estates          ,Reactive Maintenance          ,30-Aug-2023,ALPHA PARTNER (MIDLANDS)  LIMITED       ,"1,126.50",Sep-23
EREWASH BOROUGH COUNCIL,26882,Property and Estates          ,Alarms Reactive Maintenance   ,15-Aug-2023,TECSERV UK                              ,834.56,Sep-23
EREWASH BOROUGH COUNCIL,26789,Property and Estates          ,Alarms Reactive Maintenance   ,09-Aug-2023,TECSERV UK                              ,273.00,Sep-23
EREWASH BOROUGH COUNCIL,27370,Property and Estates          ,Alarms Reactive Maintenance   ,30-Aug-2023,TECSERV UK                              ,320.00,Sep-23
EREWASH BOROUGH COUNCIL,27916,Merlin Way Depot              ,Metered Water                 ,12-Aug-2023,ANGLIAN WATER BUSINESS (NATIONAL)       ,"1,667.36",Sep-23
EREWASH BOROUGH COUNCIL,27453,Civic Accommodation Long Eaton,PPM Mechanical and Equipment  ,31-Aug-2023,NORWOOD ELECTRICAL UK LTD               ,"1,261.95",Sep-23
EREWASH BOROUGH COUNCIL,26913,Civic Accommodation Long Eaton,Gas                           ,14-Aug-2023,TOTALENERGIES GAS & POWER LTD           ,344.81,Sep-23
EREWASH BOROUGH COUNCIL,27471,Civic Accommodation Long Eaton,General Equipment             ,23-Aug-2023,SAFETY SIGNS & NOTICES                  ,129.50,Sep-23
EREWASH BOROUGH COUNCIL,26679,Civic Accommodation Ilkeston  ,Agency Staff                  ,07-Aug-2023,EXTRA PERSONNEL LTD                     ,292.03,Sep-23
EREWASH BOROUGH COUNCIL,26913,Civic Accommodation Ilkeston  ,Gas                           ,14-Aug-2023,TOTALENERGIES GAS & POWER LTD           ,980.45,Sep-23
EREWASH BOROUGH COUNCIL,27916,Civic Accommodation Ilkeston  ,Metered Water                 ,12-Aug-2023,ANGLIAN WATER BUSINESS (NATIONAL)       ,414.92,Sep-23
EREWASH BOROUGH COUNCIL,27471,Civic Accommodation Ilkeston  ,General Equipment             ,23-Aug-2023,SAFETY SIGNS & NOTICES                  ,129.50,Sep-23
EREWASH BOROUGH COUNCIL,27916,Toll Bar House                ,Metered Water                 ,12-Aug-2023,ANGLIAN WATER BUSINESS (NATIONAL)       ,"1,196.09",Sep-23
EREWASH BOROUGH COUNCIL,27215,Toll Bar House                ,Alarms Planned Maintenence    ,23-Aug-2023,TECSERV UK                              ,256.76,Sep-23
EREWASH BOROUGH COUNCIL,27467,St Laurence Pre School        ,PPM Mechanical and Equipment  ,30-Aug-2023,MDB PLUMBING (NOTTM) LTD                ,478.83,Sep-23
EREWASH BOROUGH COUNCIL,26913,Sandiacre Friesland Sports Ctr,Gas                           ,14-Aug-2023,TOTALENERGIES GAS & POWER LTD           ,714.06,Sep-23
EREWASH BOROUGH COUNCIL,27302,Rutland Sports Park           ,PPM Mechanical and Equipment  ,29-Aug-2023,PEEL ELECTRICAL LTD                     ,380.96,Sep-23
EREWASH BOROUGH COUNCIL,27628,EBC Balance Sheet             ,Payroll Coll Acc - Income Tax ,19-Sep-2023,HMRC CUMBERNAULD                        ,"74,742.70",Sep-23
EREWASH BOROUGH COUNCIL,27059,EBC Balance Sheet             ,Payroll Coll Acc - Income Tax ,20-Sep-2023,HMRC CUMBERNAULD                        ,528.80,Sep-23
EREWASH BOROUGH COUNCIL,27627,EBC Balance Sheet             ,Payroll Coll Acc Superanuation,07-Sep-2023,DERBYSHIRE COUNTY COUNCIL...            ,"163,420.24",Sep-23
EREWASH BOROUGH COUNCIL,27627,EBC Balance Sheet             ,Payroll Coll Acc Superanuation,07-Sep-2023,DERBYSHIRE COUNTY COUNCIL...            ,"41,834.00",Sep-23
EREWASH BOROUGH COUNCIL,27628,EBC Balance Sheet             ,Payroll Coll Acc National Ins ,19-Sep-2023,HMRC CUMBERNAULD                        ,"94,532.63",Sep-23
EREWASH BOROUGH COUNCIL,27059,EBC Balance Sheet             ,Payroll Coll Acc National Ins ,20-Sep-2023,HMRC CUMBERNAULD                        ,577.97,Sep-23
EREWASH BOROUGH COUNCIL,27628,EBC Balance Sheet             ,Payroll Coll Acc Student Loan ,19-Sep-2023,HMRC CUMBERNAULD                        ,"1,347.00",Sep-23
EREWASH BOROUGH COUNCIL,28083,EBC Balance Sheet             ,EBC Fit for Work Scheme       ,25-Sep-2023,PARKWOOD LEISURE LTD                    ,449.50,Sep-23
EREWASH BOROUGH COUNCIL,28084,EBC Balance Sheet             ,Payroll Coll Acc - Trade Union,25-Sep-2023,UNISON                                  ,328.50,Sep-23
EREWASH BOROUGH COUNCIL,28088,EBC Balance Sheet             ,Payroll Coll Acc Labour Party ,25-Sep-2023,EREWASH LABOUR GROUP                    ,"1,331.57",Sep-23
EREWASH BOROUGH COUNCIL,28081,EBC Balance Sheet             ,Payroll Coll Acc - AVCS       ,25-Sep-2023,PRUDENTIAL                              ,"9,404.14",Sep-23
EREWASH BOROUGH COUNCIL,27322,EBC Balance Sheet             ,Payroll Coll Acc - AVCS       ,23-Aug-2023,AVC WISE LIMITED                        ,421.84,Sep-23
EREWASH BOROUGH COUNCIL,27497,EBC Balance Sheet             ,Childcare Salary Sacrifice    ,05-Sep-2023,KIDDIVOUCHERS LTD                       ,588.00,Sep-23
EREWASH BOROUGH COUNCIL,28087,EBC Balance Sheet             ,Payroll Coll Acc Attmnt Orders,25-Sep-2023,CHILD MAINTENANCE SERVICE               ,804.89,Sep-23
EREWASH BOROUGH COUNCIL,27618,Leisure Services              ,Contracted Services           ,07-Sep-2023,PARKWOOD LEISURE LTD                    ,"27,667.10",Sep-23
EREWASH BOROUGH COUNCIL,27619,Leisure Services              ,Contracted Services           ,07-Sep-2023,PARKWOOD LEISURE LTD                    ,"27,667.10",Sep-23
EREWASH BOROUGH COUNCIL,28095,Leisure Services              ,Contracted Services           ,20-Sep-2023,PARKWOOD LEISURE LTD                    ,"27,667.10",Sep-23
EREWASH BOROUGH COUNCIL,27713,Planning                      ,Structural Property Works     ,04-Sep-2023,BRANDON HIRE STATION                    ,272.00,Sep-23
EREWASH BOROUGH COUNCIL,27508,Planning                      ,Other Grants Payable          ,30-Aug-2023,E.ON UK ENERGY SERVICES                 ,"5,000.00",Sep-23
EREWASH BOROUGH COUNCIL,27736,Planning                      ,Structural Property Works     ,28-Jul-2023,GAGARIN STUDIO                          ,"9,100.00",Sep-23
EREWASH BOROUGH COUNCIL,27475,Planning                      ,Structural Property Works     ,29-Aug-2023,GAGARIN STUDIO                          ,"9,100.00",Sep-23
EREWASH BOROUGH COUNCIL,27500,Planning                      ,External Property Works       ,31-Aug-2023,COREUS PROJECTS LTD                     ,"3,506.25",Sep-23
EREWASH BOROUGH COUNCIL,27736,Planning                      ,External Property Works       ,28-Jul-2023,GAGARIN STUDIO                          ,"3,800.00",Sep-23
EREWASH BOROUGH COUNCIL,27475,Planning                      ,External Property Works       ,29-Aug-2023,GAGARIN STUDIO                          ,"3,800.00",Sep-23
EREWASH BOROUGH COUNCIL,27524,Planning                      ,External Property Works       ,31-Aug-2023,31 TEN CONSULTING LTD                   ,"5,300.00",Sep-23
EREWASH BOROUGH COUNCIL,28117,Planning                      ,External Property Works       ,26-Jul-2023,INNES ENGLAND LTD                       ,"1,788.75",Sep-23
EREWASH BOROUGH COUNCIL,28104,Planning                      ,External Property Works       ,25-Aug-2023,INNES ENGLAND LTD                       ,"5,050.00",Sep-23
EREWASH BOROUGH COUNCIL,27473,Regulatory and Housing Service,Disabled Facilities Grant     ,07-Aug-2023,DERBYSHIRE COUNTY COUNCIL...            ,"7,604.93",Sep-23
EREWASH BOROUGH COUNCIL,27472,Regulatory and Housing Service,Disabled Facilities Grant     ,20-Jul-2023,DERBYSHIRE COUNTY COUNCIL...            ,"17,608.77",Sep-23
EREWASH BOROUGH COUNCIL,27706,Regulatory and Housing Service,Disabled Facilities Grant     ,23-Aug-2023,DERBYSHIRE COUNTY COUNCIL...            ,"6,124.48",Sep-23
EREWASH BOROUGH COUNCIL,27846,Regulatory and Housing Service,Disabled Facilities Grant     ,24-Mar-2023,DERBYSHIRE COUNTY COUNCIL...            ,992.37,Sep-23
EREWASH BOROUGH COUNCIL,27845,Regulatory and Housing Service,Disabled Facilities Grant     ,05-Sep-2023,DERBYSHIRE COUNTY COUNCIL...            ,"5,367.96",Sep-23
EREWASH BOROUGH COUNCIL,27625,Regulatory and Housing Service,Disabled Facilities Grant     ,04-Sep-2023,CHRISTOPHER JAMES SHINGLES              ,"30,000.00",Sep-23
EREWASH BOROUGH COUNCIL,27628,Human Resources               ,Apprenticeship Levy           ,19-Sep-2023,HMRC CUMBERNAULD                        ,"2,017.00",Sep-23
EREWASH BOROUGH COUNCIL,27628,Human Resources               ,Apprenticeship Levy           ,19-Sep-2023,HMRC CUMBERNAULD                        ,"1,250.00",Sep-23
EREWASH BOROUGH COUNCIL,27232,Human Resources               ,Software Licences             ,21-Aug-2023,INSIGHT DIRECT (UK) LTD                 ,265.07,Sep-23
EREWASH BOROUGH COUNCIL,27837,,,01-Sep-2023,EMPIRA LTD                              ,267.01,Sep-23
EREWASH BOROUGH COUNCIL,27490,,,04-Sep-2023,PENHAM EXCEL LIMITED                    ,959.15,Sep-23
EREWASH BOROUGH COUNCIL,27747,,,11-Sep-2023,PENHAM EXCEL LIMITED                    ,"1,969.41",Sep-23
EREWASH BOROUGH COUNCIL,27388,,,30-Aug-2023,MARSTON HOLDINGS LIMITED                ,683.83,Sep-23
